{"text_format":"3","workbook":"xlsx","n_sheets":2,"sheets":["НАЧАЛО","ЛИЧНЫЙ БЮДЖЕТ"],"not_rendered":{"defined_names":2},"read":"whole","date_system":"1900"}

{"sheet":"НАЧАЛО","index":0,"n_rows":7,"n_cols":2,"rows_kept":7}
[null,"Об этом шаблоне"]
[null,"Составляйте ежемесячный или годовой бюджет с помощью этого шаблона."]
[null,"Вводите Выручка и Расходы в соответствующих таблицах, чтобы рассчитать дефицит или избыток денежных средств за месяц или год."]
[null,"Спарклайны в таблицах обновляются автоматически."]
[null,"Примечание. "]
[null,"В столбце A листа ЛИЧНЫЙ БЮДЖЕТ содержатся дополнительные инструкции. Их текст намерено скрыт. Чтобы удалить этот текст, выделите столбец A и нажмите клавишу УДАЛЯТЬ. Чтобы отобразить текст, выделите столбец A и измените цвет шрифта."]
[null,"Чтобы получить дополнительные сведения о таблице, щелкните в ней ячейку, затем нажмите клавиши SHIFT+F10, выберите пункт «Таблица», а затем — «Замещающий текст»."]

{"sheet":"ЛИЧНЫЙ БЮДЖЕТ","index":1,"n_rows":107,"n_cols":17,"rows_kept":107,"merged":[[1,1,1,3],[1,4,1,15],[27,2,27,16],[36,2,36,16],[43,2,43,16],[53,2,53,16],[62,2,62,16],[69,2,69,16],[79,2,79,16],[87,2,87,16],[95,2,95,16],[103,2,103,16]]}
["Создайте на этом листе простой личный бюджет. В ячейках этого столбца представлены полезные инструкции по использованию этого листа. Нажмите СТРЕЛКУ ВНИЗ, чтобы начать."]
["Ячейка справа содержит заголовок листа. В ячейке Q2 введите год. Дальнейшие инструкции указаны в ячейке A4.","ЛИЧНЫЙ БЮДЖЕТ",{"$nulls":14},{"$f":"YEAR(TODAY())","v":2019}]
[]
["Ячейки диапазона C4:P4 содержат подписи.",null,"ВЫРУЧКА","ЯНВ","ФЕВ","МАР","АПР","МАЙ","ИЮН","ИЮЛ","АВГ","СЕН","ОКТ","НОЯ","ДЕК","ГОД"]
["Введите сведения в таблице «Доходы», начиная с ячейки C5. Дальнейшие инструкции указаны в ячейке A11.",null,"ДОХОДЫ","Январь","Февраль","Март","Апрель","Май","Июнь","Июль","Август","Сентябрь","Октябрь","Ноябрь","Декабрь","Год","Спарклайн"]
[null,null,"Зарплата",{"v":2600,"d":"2,600.00 ₽"},{"v":2600,"d":"2,600.00 ₽"},{"v":2600,"d":"2,600.00 ₽"},{"$nulls":9},{"$f":"SUM(Доходы[[#This Row],[Январь]:[Декабрь]])","v":{"v":7800,"d":"7,800.00 ₽"}}]
[null,null,"Проценты и дивиденды",{"v":649,"d":"649.00 ₽"},{"v":313,"d":"313.00 ₽"},{"v":664,"d":"664.00 ₽"},{"$nulls":9},{"$f":"SUM(Доходы[[#This Row],[Январь]:[Декабрь]])","v":{"v":1626,"d":"1,626.00 ₽"}}]
[null,null,"Прочее",{"v":474,"d":"474.00 ₽"},{"v":643,"d":"643.00 ₽"},{"v":380,"d":"380.00 ₽"},{"$nulls":9},{"$f":"SUM(Доходы[[#This Row],[Январь]:[Декабрь]])","v":{"v":1497,"d":"1,497.00 ₽"}}]
[null,null,"Итог",{"$f":"SUBTOTAL(109,Доходы[Январь])","v":{"v":3723,"d":"3,723.00 ₽"}},{"$f":"SUBTOTAL(109,Доходы[Февраль])","v":{"v":3556,"d":"3,556.00 ₽"}},{"$f":"SUBTOTAL(109,Доходы[Март])","v":{"v":3644,"d":"3,644.00 ₽"}},{"$f":"SUBTOTAL(109,Доходы[Апрель])","v":{"v":0,"d":"0.00 ₽"}},{"$f":"SUBTOTAL(109,Доходы[Май])","v":{"v":0,"d":"0.00 ₽"}},{"$f":"SUBTOTAL(109,Доходы[Июнь])","v":{"v":0,"d":"0.00 ₽"}},{"$f":"SUBTOTAL(109,Доходы[Июль])","v":{"v":0,"d":"0.00 ₽"}},{"$f":"SUBTOTAL(109,Доходы[Август])","v":{"v":0,"d":"0.00 ₽"}},{"$f":"SUBTOTAL(109,Доходы[Сентябрь])","v":{"v":0,"d":"0.00 ₽"}},{"$f":"SUBTOTAL(109,Доходы[Октябрь])","v":{"v":0,"d":"0.00 ₽"}},{"$f":"SUBTOTAL(109,Доходы[Ноябрь])","v":{"v":0,"d":"0.00 ₽"}},{"$f":"SUBTOTAL(109,Доходы[Декабрь])","v":{"v":0,"d":"0.00 ₽"}},{"$f":"SUBTOTAL(109,Доходы[Год])","v":{"v":10923,"d":"10,923.00 ₽"}}]
[]
["Ячейки диапазона C11:P11 содержат подписи.",null,"РАСХОДЫ","ЯНВ","ФЕВ","МАР","АПР","МАЙ","ИЮН","ИЮЛ","АВГ","СЕН","ОКТ","НОЯ","ДЕК","ГОД"]
["Введите сведения в таблице «Домашние расходы», начиная с ячейки C12. Дальнейшие инструкции указаны в ячейке A20.",null,"ДОМАШНИЕ РАСХОДЫ","Январь","Февраль","Март","Апрель","Май","Июнь","Июль","Август","Сентябрь","Октябрь","Ноябрь","Декабрь","Год","Спарклайн"]
[null,null,"Ипотека",{"v":750,"d":"750.00 ₽"},{"v":750,"d":"750.00 ₽"},{"v":750,"d":"750.00 ₽"},{"$nulls":9},{"$f":"SUM(Домашние_расходы[[#This Row],[Январь]:[Декабрь]])","v":{"v":2250,"d":"2,250.00 ₽"}}]
[null,null,"Страхование",{"$nulls":12},{"$f":"SUM(Домашние_расходы[[#This Row],[Январь]:[Декабрь]])","v":{"v":0,"d":"0.00 ₽"}}]
[null,null,"Ремонт",null,null,{"v":75,"d":"75.00 ₽"},{"$nulls":9},{"$f":"SUM(Домашние_расходы[[#This Row],[Январь]:[Декабрь]])","v":{"v":75,"d":"75.00 ₽"}}]
[null,null,"Услуги",{"v":35,"d":"35.00 ₽"},{"v":35,"d":"35.00 ₽"},{"v":35,"d":"35.00 ₽"},{"$nulls":9},{"$f":"SUM(Домашние_расходы[[#This Row],[Январь]:[Декабрь]])","v":{"v":105,"d":"105.00 ₽"}}]
[null,null,"Коммунальные услуги",{"v":165,"d":"165.00 ₽"},{"v":165,"d":"165.00 ₽"},{"v":165,"d":"165.00 ₽"},{"$nulls":9},{"$f":"SUM(Домашние_расходы[[#This Row],[Январь]:[Декабрь]])","v":{"v":495,"d":"495.00 ₽"}}]
[null,null,"Итог",{"$f":"SUBTOTAL(109,Домашние_расходы[Январь])","v":{"v":950,"d":"950.00 ₽"}},{"$f":"SUBTOTAL(109,Домашние_расходы[Февраль])","v":{"v":950,"d":"950.00 ₽"}},{"$f":"SUBTOTAL(109,Домашние_расходы[Март])","v":{"v":1025,"d":"1,025.00 ₽"}},{"$f":"SUBTOTAL(109,Домашние_расходы[Апрель])","v":{"v":0,"d":"0.00 ₽"}},{"$f":"SUBTOTAL(109,Домашние_расходы[Май])","v":{"v":0,"d":"0.00 ₽"}},{"$f":"SUBTOTAL(109,Домашние_расходы[Июнь])","v":{"v":0,"d":"0.00 ₽"}},{"$f":"SUBTOTAL(109,Домашние_расходы[Июль])","v":{"v":0,"d":"0.00 ₽"}},{"$f":"SUBTOTAL(109,Домашние_расходы[Август])","v":{"v":0,"d":"0.00 ₽"}},{"$f":"SUBTOTAL(109,Домашние_расходы[Сентябрь])","v":{"v":0,"d":"0.00 ₽"}},{"$f":"SUBTOTAL(109,Домашние_расходы[Октябрь])","v":{"v":0,"d":"0.00 ₽"}},{"$f":"SUBTOTAL(109,Домашние_расходы[Ноябрь])","v":{"v":0,"d":"0.00 ₽"}},{"$f":"SUBTOTAL(109,Домашние_расходы[Декабрь])","v":{"v":0,"d":"0.00 ₽"}},{"$f":"SUBTOTAL(109,Домашние_расходы[Год])","v":{"v":2925,"d":"2,925.00 ₽"}}]
[]
["Введите сведения в таблице «Ежедневные расходы», начиная с ячейки C20. Дальнейшие инструкции указаны в ячейке A29.",null,"ПОВСЕДНЕВНЫЕ РАСХОДЫ","Январь","Февраль","Март","Апрель","Май","Июнь","Июль","Август","Сентябрь","Октябрь","Ноябрь","Декабрь","Год","Спарклайн"]
[null,null,"Продовольственные товары ",{"v":191,"d":"191.00 ₽"},{"v":152,"d":"152.00 ₽"},{"v":145,"d":"145.00 ₽"},{"$nulls":9},{"$f":"SUM(Ежедневные[[#This Row],[Январь]:[Декабрь]])","v":{"v":488,"d":"488.00 ₽"}}]
[null,null,"Уход за ребенком",{"v":200,"d":"200.00 ₽"},{"v":200,"d":"200.00 ₽"},{"v":200,"d":"200.00 ₽"},{"$nulls":9},{"$f":"SUM(Ежедневные[[#This Row],[Январь]:[Декабрь]])","v":{"v":600,"d":"600.00 ₽"}}]
[null,null,"Химчистка",{"v":20,"d":"20.00 ₽"},null,{"v":20,"d":"20.00 ₽"},{"$nulls":9},{"$f":"SUM(Ежедневные[[#This Row],[Январь]:[Декабрь]])","v":{"v":40,"d":"40.00 ₽"}}]
[null,null,"Рестораны",{"v":55,"d":"55.00 ₽"},null,{"v":56,"d":"56.00 ₽"},{"$nulls":9},{"$f":"SUM(Ежедневные[[#This Row],[Январь]:[Декабрь]])","v":{"v":111,"d":"111.00 ₽"}}]
[null,null,"Уборка дома",{"v":25,"d":"25.00 ₽"},{"v":17,"d":"17.00 ₽"},{"v":7,"d":"7.00 ₽"},{"$nulls":9},{"$f":"SUM(Ежедневные[[#This Row],[Январь]:[Декабрь]])","v":{"v":49,"d":"49.00 ₽"}}]
[null,null,"Выгул собак",{"v":10,"d":"10.00 ₽"},{"v":5,"d":"5.00 ₽"},{"v":7,"d":"7.00 ₽"},{"$nulls":9},{"$f":"SUM(Ежедневные[[#This Row],[Январь]:[Декабрь]])","v":{"v":22,"d":"22.00 ₽"}}]
[null,null,"Итог",{"$f":"SUBTOTAL(109,Ежедневные[Январь])","v":{"v":501,"d":"501.00 ₽"}},{"$f":"SUBTOTAL(109,Ежедневные[Февраль])","v":{"v":374,"d":"374.00 ₽"}},{"$f":"SUBTOTAL(109,Ежедневные[Март])","v":{"v":435,"d":"435.00 ₽"}},{"$f":"SUBTOTAL(109,Ежедневные[Апрель])","v":{"v":0,"d":"0.00 ₽"}},{"$f":"SUBTOTAL(109,Ежедневные[Май])","v":{"v":0,"d":"0.00 ₽"}},{"$f":"SUBTOTAL(109,Ежедневные[Июнь])","v":{"v":0,"d":"0.00 ₽"}},{"$f":"SUBTOTAL(109,Ежедневные[Июль])","v":{"v":0,"d":"0.00 ₽"}},{"$f":"SUBTOTAL(109,Ежедневные[Август])","v":{"v":0,"d":"0.00 ₽"}},{"$f":"SUBTOTAL(109,Ежедневные[Сентябрь])","v":{"v":0,"d":"0.00 ₽"}},{"$f":"SUBTOTAL(109,Ежедневные[Октябрь])","v":{"v":0,"d":"0.00 ₽"}},{"$f":"SUBTOTAL(109,Ежедневные[Ноябрь])","v":{"v":0,"d":"0.00 ₽"}},{"$f":"SUBTOTAL(109,Ежедневные[Декабрь])","v":{"v":0,"d":"0.00 ₽"}},{"$f":"SUBTOTAL(109,Ежедневные[Год])","v":{"v":1310,"d":"1,310.00 ₽"}}]
[]
["Введите сведения в таблице «Транспорт», начиная с ячейки C29. Дальнейшие инструкции указаны в ячейке A38.",null,"ТРАНСПОРТ","Январь","Февраль","Март","Апрель","Май","Июнь","Июль","Август","Сентябрь","Октябрь","Ноябрь","Декабрь","Год","Спарклайн"]
[null,null,"Топливо",{"v":195,"d":"195.00 ₽"},{"v":125,"d":"125.00 ₽"},{"v":171,"d":"171.00 ₽"},{"$nulls":9},{"$f":"SUM(Транспорт[[#This Row],[Январь]:[Декабрь]])","v":{"v":491,"d":"491.00 ₽"}}]
[null,null,"Страхование",{"v":165,"d":"165.00 ₽"},{"v":165,"d":"165.00 ₽"},{"v":165,"d":"165.00 ₽"},{"$nulls":9},{"$f":"SUM(Транспорт[[#This Row],[Январь]:[Декабрь]])","v":{"v":495,"d":"495.00 ₽"}}]
[null,null,"Ремонт",{"$nulls":12},{"$f":"SUM(Транспорт[[#This Row],[Январь]:[Декабрь]])","v":{"v":0,"d":"0.00 ₽"}}]
[null,null,"Автомойка",{"v":10,"d":"10.00 ₽"},{"$nulls":11},{"$f":"SUM(Транспорт[[#This Row],[Январь]:[Декабрь]])","v":{"v":10,"d":"10.00 ₽"}}]
[null,null,"Стоянка",{"v":10,"d":"10.00 ₽"},{"v":40,"d":"40.00 ₽"},{"v":20,"d":"20.00 ₽"},{"$nulls":9},{"$f":"SUM(Транспорт[[#This Row],[Январь]:[Декабрь]])","v":{"v":70,"d":"70.00 ₽"}}]
[null,null,"Общественный транспорт",{"v":20,"d":"20.00 ₽"},{"v":40,"d":"40.00 ₽"},{"v":30,"d":"30.00 ₽"},{"$nulls":9},{"$f":"SUM(Транспорт[[#This Row],[Январь]:[Декабрь]])","v":{"v":90,"d":"90.00 ₽"}}]
[null,null,"Итог",{"$f":"SUBTOTAL(109,Транспорт[Январь])","v":{"v":400,"d":"400.00 ₽"}},{"$f":"SUBTOTAL(109,Транспорт[Февраль])","v":{"v":370,"d":"370.00 ₽"}},{"$f":"SUBTOTAL(109,Транспорт[Март])","v":{"v":386,"d":"386.00 ₽"}},{"$f":"SUBTOTAL(109,Транспорт[Апрель])","v":{"v":0,"d":"0.00 ₽"}},{"$f":"SUBTOTAL(109,Транспорт[Май])","v":{"v":0,"d":"0.00 ₽"}},{"$f":"SUBTOTAL(109,Транспорт[Июнь])","v":{"v":0,"d":"0.00 ₽"}},{"$f":"SUBTOTAL(109,Транспорт[Июль])","v":{"v":0,"d":"0.00 ₽"}},{"$f":"SUBTOTAL(109,Транспорт[Август])","v":{"v":0,"d":"0.00 ₽"}},{"$f":"SUBTOTAL(109,Транспорт[Сентябрь])","v":{"v":0,"d":"0.00 ₽"}},{"$f":"SUBTOTAL(109,Транспорт[Октябрь])","v":{"v":0,"d":"0.00 ₽"}},{"$f":"SUBTOTAL(109,Транспорт[Ноябрь])","v":{"v":0,"d":"0.00 ₽"}},{"$f":"SUBTOTAL(109,Транспорт[Декабрь])","v":{"v":0,"d":"0.00 ₽"}},{"$f":"SUBTOTAL(109,Транспорт[Год])","v":{"v":1156,"d":"1,156.00 ₽"}}]
[]
["Введите сведения в таблице «Развлечения», начиная с ячейки C38. Дальнейшие инструкции указаны в ячейке A45.",null,"РАЗВЛЕЧЕНИЯ","Январь","Февраль","Март","Апрель","Май","Июнь","Июль","Август","Сентябрь","Октябрь","Ноябрь","Декабрь","Год","Спарклайн"]
[null,null,"Кабельное ТВ",{"v":85,"d":"85.00 ₽"},{"v":85,"d":"85.00 ₽"},{"v":85,"d":"85.00 ₽"},{"$nulls":9},{"$f":"SUM(Развлечения[[#This Row],[Январь]:[Декабрь]])","v":{"v":255,"d":"255.00 ₽"}}]
[null,null,"Прокат видео/DVD",{"v":7,"d":"7.00 ₽"},{"v":8,"d":"8.00 ₽"},{"v":9,"d":"9.00 ₽"},{"$nulls":9},{"$f":"SUM(Развлечения[[#This Row],[Январь]:[Декабрь]])","v":{"v":24,"d":"24.00 ₽"}}]
[null,null,"Кино/театры",{"v":9,"d":"9.00 ₽"},{"v":5,"d":"5.00 ₽"},{"v":9,"d":"9.00 ₽"},{"$nulls":9},{"$f":"SUM(Развлечения[[#This Row],[Январь]:[Декабрь]])","v":{"v":23,"d":"23.00 ₽"}}]
[null,null,"Концерты/клубы",{"v":5,"d":"5.00 ₽"},{"v":5,"d":"5.00 ₽"},{"v":7,"d":"7.00 ₽"},{"$nulls":9},{"$f":"SUM(Развлечения[[#This Row],[Январь]:[Декабрь]])","v":{"v":17,"d":"17.00 ₽"}}]
[null,null,"Итог",{"$f":"SUBTOTAL(109,Развлечения[Январь])","v":{"v":106,"d":"106.00 ₽"}},{"$f":"SUBTOTAL(109,Развлечения[Февраль])","v":{"v":103,"d":"103.00 ₽"}},{"$f":"SUBTOTAL(109,Развлечения[Март])","v":{"v":110,"d":"110.00 ₽"}},{"$f":"SUBTOTAL(109,Развлечения[Апрель])","v":{"v":0,"d":"0.00 ₽"}},{"$f":"SUBTOTAL(109,Развлечения[Май])","v":{"v":0,"d":"0.00 ₽"}},{"$f":"SUBTOTAL(109,Развлечения[Июнь])","v":{"v":0,"d":"0.00 ₽"}},{"$f":"SUBTOTAL(109,Развлечения[Июль])","v":{"v":0,"d":"0.00 ₽"}},{"$f":"SUBTOTAL(109,Развлечения[Август])","v":{"v":0,"d":"0.00 ₽"}},{"$f":"SUBTOTAL(109,Развлечения[Сентябрь])","v":{"v":0,"d":"0.00 ₽"}},{"$f":"SUBTOTAL(109,Развлечения[Октябрь])","v":{"v":0,"d":"0.00 ₽"}},{"$f":"SUBTOTAL(109,Развлечения[Ноябрь])","v":{"v":0,"d":"0.00 ₽"}},{"$f":"SUBTOTAL(109,Развлечения[Декабрь])","v":{"v":0,"d":"0.00 ₽"}},{"$f":"SUBTOTAL(109,Развлечения[Год])","v":{"v":319,"d":"319.00 ₽"}}]
[]
["Введите сведения в таблице «Здоровье», начиная с ячейки C45 Дальнейшие инструкции указаны в ячейке A55.",null,"ЗДОРОВЬЕ","Январь","Февраль","Март","Апрель","Май","Июнь","Июль","Август","Сентябрь","Октябрь","Ноябрь","Декабрь","Год","Спарклайн"]
[null,null,"Взносы в оздоровительный клуб",{"v":50,"d":"50.00 ₽"},{"v":50,"d":"50.00 ₽"},{"v":50,"d":"50.00 ₽"},{"$nulls":9},{"$f":"SUM(Здоровье[[#This Row],[Январь]:[Декабрь]])","v":{"v":150,"d":"150.00 ₽"}}]
[null,null,"Страхование",{"v":225,"d":"225.00 ₽"},{"v":225,"d":"225.00 ₽"},{"v":225,"d":"225.00 ₽"},{"$nulls":9},{"$f":"SUM(Здоровье[[#This Row],[Январь]:[Декабрь]])","v":{"v":675,"d":"675.00 ₽"}}]
[null,null,"Лекарства по рецепту",{"v":100,"d":"100.00 ₽"},{"v":100,"d":"100.00 ₽"},{"v":100,"d":"100.00 ₽"},{"$nulls":9},{"$f":"SUM(Здоровье[[#This Row],[Январь]:[Декабрь]])","v":{"v":300,"d":"300.00 ₽"}}]
[null,null,"Лекарства без рецепта",{"v":6,"d":"6.00 ₽"},{"v":2,"d":"2.00 ₽"},{"v":9,"d":"9.00 ₽"},{"$nulls":9},{"$f":"SUM(Здоровье[[#This Row],[Январь]:[Декабрь]])","v":{"v":17,"d":"17.00 ₽"}}]
[null,null,"Совместная оплата/подлежащее оплате",{"v":20,"d":"20.00 ₽"},null,{"v":41,"d":"41.00 ₽"},{"$nulls":9},{"$f":"SUM(Здоровье[[#This Row],[Январь]:[Декабрь]])","v":{"v":61,"d":"61.00 ₽"}}]
[null,null,"Ветеринары/медикаменты для питомцев",{"v":4,"d":"4.00 ₽"},null,{"v":25,"d":"25.00 ₽"},{"$nulls":9},{"$f":"SUM(Здоровье[[#This Row],[Январь]:[Декабрь]])","v":{"v":29,"d":"29.00 ₽"}}]
[null,null,"Страхование жизни",{"v":55,"d":"55.00 ₽"},{"v":55,"d":"55.00 ₽"},{"v":55,"d":"55.00 ₽"},{"$nulls":9},{"$f":"SUM(Здоровье[[#This Row],[Январь]:[Декабрь]])","v":{"v":165,"d":"165.00 ₽"}}]
[null,null,"Итог",{"$f":"SUBTOTAL(109,Здоровье[Январь])","v":{"v":460,"d":"460.00 ₽"}},{"$f":"SUBTOTAL(109,Здоровье[Февраль])","v":{"v":432,"d":"432.00 ₽"}},{"$f":"SUBTOTAL(109,Здоровье[Март])","v":{"v":505,"d":"505.00 ₽"}},{"$f":"SUBTOTAL(109,Здоровье[Апрель])","v":{"v":0,"d":"0.00 ₽"}},{"$f":"SUBTOTAL(109,Здоровье[Май])","v":{"v":0,"d":"0.00 ₽"}},{"$f":"SUBTOTAL(109,Здоровье[Июнь])","v":{"v":0,"d":"0.00 ₽"}},{"$f":"SUBTOTAL(109,Здоровье[Июль])","v":{"v":0,"d":"0.00 ₽"}},{"$f":"SUBTOTAL(109,Здоровье[Август])","v":{"v":0,"d":"0.00 ₽"}},{"$f":"SUBTOTAL(109,Здоровье[Сентябрь])","v":{"v":0,"d":"0.00 ₽"}},{"$f":"SUBTOTAL(109,Здоровье[Октябрь])","v":{"v":0,"d":"0.00 ₽"}},{"$f":"SUBTOTAL(109,Здоровье[Ноябрь])","v":{"v":0,"d":"0.00 ₽"}},{"$f":"SUBTOTAL(109,Здоровье[Декабрь])","v":{"v":0,"d":"0.00 ₽"}},{"$f":"SUBTOTAL(109,Здоровье[Год])","v":{"v":1397,"d":"1,397.00 ₽"}}]
[]
["Введите сведения в таблице «Отпуск», начиная с ячейки C55. Дальнейшие инструкции указаны в ячейке A64.",null,"ОТПУСК","Январь","Февраль","Март","Апрель","Май","Июнь","Июль","Август","Сентябрь","Октябрь","Ноябрь","Декабрь","Год","Спарклайн"]
[null,null,"Авиабилеты",null,{"v":485,"d":"485.00 ₽"},{"$nulls":10},{"$f":"SUM(Отпуск[[#This Row],[Январь]:[Декабрь]])","v":{"v":485,"d":"485.00 ₽"}}]
[null,null,"Проживание",null,{"v":245,"d":"245.00 ₽"},{"$nulls":10},{"$f":"SUM(Отпуск[[#This Row],[Январь]:[Декабрь]])","v":{"v":245,"d":"245.00 ₽"}}]
[null,null,"Питание",null,{"v":95,"d":"95.00 ₽"},{"$nulls":10},{"$f":"SUM(Отпуск[[#This Row],[Январь]:[Декабрь]])","v":{"v":95,"d":"95.00 ₽"}}]
[null,null,"Сувениры",{"$nulls":12},{"$f":"SUM(Отпуск[[#This Row],[Январь]:[Декабрь]])","v":{"v":0,"d":"0.00 ₽"}}]
[null,null,"Уход за питомцами",{"$nulls":12},{"$f":"SUM(Отпуск[[#This Row],[Январь]:[Декабрь]])","v":{"v":0,"d":"0.00 ₽"}}]
[null,null,"Прокат автомобиля",null,{"v":85,"d":"85.00 ₽"},{"$nulls":10},{"$f":"SUM(Отпуск[[#This Row],[Январь]:[Декабрь]])","v":{"v":85,"d":"85.00 ₽"}}]
[null,null,"Итог",{"$f":"SUBTOTAL(109,Отпуск[Январь])","v":{"v":0,"d":"0.00 ₽"}},{"$f":"SUBTOTAL(109,Отпуск[Февраль])","v":{"v":910,"d":"910.00 ₽"}},{"$f":"SUBTOTAL(109,Отпуск[Март])","v":{"v":0,"d":"0.00 ₽"}},{"$f":"SUBTOTAL(109,Отпуск[Апрель])","v":{"v":0,"d":"0.00 ₽"}},{"$f":"SUBTOTAL(109,Отпуск[Май])","v":{"v":0,"d":"0.00 ₽"}},{"$f":"SUBTOTAL(109,Отпуск[Июнь])","v":{"v":0,"d":"0.00 ₽"}},{"$f":"SUBTOTAL(109,Отпуск[Июль])","v":{"v":0,"d":"0.00 ₽"}},{"$f":"SUBTOTAL(109,Отпуск[Август])","v":{"v":0,"d":"0.00 ₽"}},{"$f":"SUBTOTAL(109,Отпуск[Сентябрь])","v":{"v":0,"d":"0.00 ₽"}},{"$f":"SUBTOTAL(109,Отпуск[Октябрь])","v":{"v":0,"d":"0.00 ₽"}},{"$f":"SUBTOTAL(109,Отпуск[Ноябрь])","v":{"v":0,"d":"0.00 ₽"}},{"$f":"SUBTOTAL(109,Отпуск[Декабрь])","v":{"v":0,"d":"0.00 ₽"}},{"$f":"SUBTOTAL(109,Отпуск[Год])","v":{"v":910,"d":"910.00 ₽"}}]
[]
["Введите сведения в таблице «Отдых», начиная с ячейки C64. Дальнейшие инструкции указаны в ячейке A71.",null,"ОТДЫХ","Январь","Февраль","Март","Апрель","Май","Июнь","Июль","Август","Сентябрь","Октябрь","Ноябрь","Декабрь","Год","Спарклайн"]
[null,null,"Абонемент в тренажерный зал",{"$nulls":12},{"$f":"SUM(Отдых[[#This Row],[Январь]:[Декабрь]])","v":{"v":0,"d":"0.00 ₽"}}]
[null,null,"Спортивное снаряжение",{"$nulls":12},{"$f":"SUM(Отдых[[#This Row],[Январь]:[Декабрь]])","v":{"v":0,"d":"0.00 ₽"}}]
[null,null,"Командные взносы",{"$nulls":12},{"$f":"SUM(Отдых[[#This Row],[Январь]:[Декабрь]])","v":{"v":0,"d":"0.00 ₽"}}]
[null,null,"Игрушки/снаряжение для ребенка",{"v":39,"d":"39.00 ₽"},{"v":33,"d":"33.00 ₽"},{"v":40,"d":"40.00 ₽"},{"$nulls":9},{"$f":"SUM(Отдых[[#This Row],[Январь]:[Декабрь]])","v":{"v":112,"d":"112.00 ₽"}}]
[null,null,"Итог",{"$f":"SUBTOTAL(109,Отдых[Январь])","v":{"v":39,"d":"39.00 ₽"}},{"$f":"SUBTOTAL(109,Отдых[Февраль])","v":{"v":33,"d":"33.00 ₽"}},{"$f":"SUBTOTAL(109,Отдых[Март])","v":{"v":40,"d":"40.00 ₽"}},{"$f":"SUBTOTAL(109,Отдых[Апрель])","v":{"v":0,"d":"0.00 ₽"}},{"$f":"SUBTOTAL(109,Отдых[Май])","v":{"v":0,"d":"0.00 ₽"}},{"$f":"SUBTOTAL(109,Отдых[Июнь])","v":{"v":0,"d":"0.00 ₽"}},{"$f":"SUBTOTAL(109,Отдых[Июль])","v":{"v":0,"d":"0.00 ₽"}},{"$f":"SUBTOTAL(109,Отдых[Август])","v":{"v":0,"d":"0.00 ₽"}},{"$f":"SUBTOTAL(109,Отдых[Сентябрь])","v":{"v":0,"d":"0.00 ₽"}},{"$f":"SUBTOTAL(109,Отдых[Октябрь])","v":{"v":0,"d":"0.00 ₽"}},{"$f":"SUBTOTAL(109,Отдых[Ноябрь])","v":{"v":0,"d":"0.00 ₽"}},{"$f":"SUBTOTAL(109,Отдых[Декабрь])","v":{"v":0,"d":"0.00 ₽"}},{"$f":"SUBTOTAL(109,Отдых[Год])","v":{"v":112,"d":"112.00 ₽"}}]
[]
["Введите сведения в таблицах «Платежи» и «Подписки», начиная с ячейки С71. Дальнейшие инструкции указаны в ячейке A81.",null,"ПЛАТЕЖИ/ПОДПИСКИ","Январь","Февраль","Март","Апрель","Май","Июнь","Июль","Август","Сентябрь","Октябрь","Ноябрь","Декабрь","Год","Спарклайн"]
[null,null,"Журналы",{"$nulls":12},{"$f":"SUM(Платежи_и_подписки[[#This Row],[Январь]:[Декабрь]])","v":{"v":0,"d":"0.00 ₽"}}]
[null,null,"Газеты",{"$nulls":12},{"$f":"SUM(Платежи_и_подписки[[#This Row],[Январь]:[Декабрь]])","v":{"v":0,"d":"0.00 ₽"}}]
[null,null,"Подключение к Интернету",{"$nulls":12},{"$f":"SUM(Платежи_и_подписки[[#This Row],[Январь]:[Декабрь]])","v":{"v":0,"d":"0.00 ₽"}}]
[null,null,"Общественное радио",{"$nulls":12},{"$f":"SUM(Платежи_и_подписки[[#This Row],[Январь]:[Декабрь]])","v":{"v":0,"d":"0.00 ₽"}}]
[null,null,"Общественное телевидение",{"$nulls":12},{"$f":"SUM(Платежи_и_подписки[[#This Row],[Январь]:[Декабрь]])","v":{"v":0,"d":"0.00 ₽"}}]
[null,null,"Религиозные организации",{"v":29,"d":"29.00 ₽"},{"v":18,"d":"18.00 ₽"},{"v":17,"d":"17.00 ₽"},{"$nulls":9},{"$f":"SUM(Платежи_и_подписки[[#This Row],[Январь]:[Декабрь]])","v":{"v":64,"d":"64.00 ₽"}}]
[null,null,"Благотворительные взносы",{"$nulls":12},{"$f":"SUM(Платежи_и_подписки[[#This Row],[Январь]:[Декабрь]])","v":{"v":0,"d":"0.00 ₽"}}]
[null,null,"Итог",{"$f":"SUBTOTAL(109,Платежи_и_подписки[Январь])","v":{"v":29,"d":"29.00 ₽"}},{"$f":"SUBTOTAL(109,Платежи_и_подписки[Февраль])","v":{"v":18,"d":"18.00 ₽"}},{"$f":"SUBTOTAL(109,Платежи_и_подписки[Март])","v":{"v":17,"d":"17.00 ₽"}},{"$f":"SUBTOTAL(109,Платежи_и_подписки[Апрель])","v":{"v":0,"d":"0.00 ₽"}},{"$f":"SUBTOTAL(109,Платежи_и_подписки[Май])","v":{"v":0,"d":"0.00 ₽"}},{"$f":"SUBTOTAL(109,Платежи_и_подписки[Июнь])","v":{"v":0,"d":"0.00 ₽"}},{"$f":"SUBTOTAL(109,Платежи_и_подписки[Июль])","v":{"v":0,"d":"0.00 ₽"}},{"$f":"SUBTOTAL(109,Платежи_и_подписки[Август])","v":{"v":0,"d":"0.00 ₽"}},{"$f":"SUBTOTAL(109,Платежи_и_подписки[Сентябрь])","v":{"v":0,"d":"0.00 ₽"}},{"$f":"SUBTOTAL(109,Платежи_и_подписки[Октябрь])","v":{"v":0,"d":"0.00 ₽"}},{"$f":"SUBTOTAL(109,Платежи_и_подписки[Ноябрь])","v":{"v":0,"d":"0.00 ₽"}},{"$f":"SUBTOTAL(109,Платежи_и_подписки[Декабрь])","v":{"v":0,"d":"0.00 ₽"}},{"$f":"SUBTOTAL(109,Платежи_и_подписки[Год])","v":{"v":64,"d":"64.00 ₽"}}]
[]
["Введите сведения в таблице «Личные расходы», начиная с ячейки C81. Дальнейшие инструкции указаны в ячейке A89.",null,"ЛИЧНЫЕ РАСХОДЫ","Январь","Февраль","Март","Апрель","Май","Июнь","Июль","Август","Сентябрь","Октябрь","Ноябрь","Декабрь","Год","Спарклайн"]
[null,null,"Одежда",null,null,{"v":29,"d":"29.00 ₽"},{"$nulls":9},{"$f":"SUM(Личные_расходы[[#This Row],[Январь]:[Декабрь]])","v":{"v":29,"d":"29.00 ₽"}}]
[null,null,"Подарки",null,{"v":35,"d":"35.00 ₽"},{"$nulls":10},{"$f":"SUM(Личные_расходы[[#This Row],[Январь]:[Декабрь]])","v":{"v":35,"d":"35.00 ₽"}}]
[null,null,"Салон красоты/парикмахерская",{"v":25,"d":"25.00 ₽"},{"v":25,"d":"25.00 ₽"},{"v":25,"d":"25.00 ₽"},{"$nulls":9},{"$f":"SUM(Личные_расходы[[#This Row],[Январь]:[Декабрь]])","v":{"v":75,"d":"75.00 ₽"}}]
[null,null,"Книги",{"$nulls":12},{"$f":"SUM(Личные_расходы[[#This Row],[Январь]:[Декабрь]])","v":{"v":0,"d":"0.00 ₽"}}]
[null,null,"Музыка (компакт-диски и т. д.)",{"$nulls":12},{"$f":"SUM(Личные_расходы[[#This Row],[Январь]:[Декабрь]])","v":{"v":0,"d":"0.00 ₽"}}]
[null,null,"Итог",{"$f":"SUBTOTAL(109,Личные_расходы[Январь])","v":{"v":25,"d":"25.00 ₽"}},{"$f":"SUBTOTAL(109,Личные_расходы[Февраль])","v":{"v":60,"d":"60.00 ₽"}},{"$f":"SUBTOTAL(109,Личные_расходы[Март])","v":{"v":54,"d":"54.00 ₽"}},{"$f":"SUBTOTAL(109,Личные_расходы[Апрель])","v":{"v":0,"d":"0.00 ₽"}},{"$f":"SUBTOTAL(109,Личные_расходы[Май])","v":{"v":0,"d":"0.00 ₽"}},{"$f":"SUBTOTAL(109,Личные_расходы[Июнь])","v":{"v":0,"d":"0.00 ₽"}},{"$f":"SUBTOTAL(109,Личные_расходы[Июль])","v":{"v":0,"d":"0.00 ₽"}},{"$f":"SUBTOTAL(109,Личные_расходы[Август])","v":{"v":0,"d":"0.00 ₽"}},{"$f":"SUBTOTAL(109,Личные_расходы[Сентябрь])","v":{"v":0,"d":"0.00 ₽"}},{"$f":"SUBTOTAL(109,Личные_расходы[Октябрь])","v":{"v":0,"d":"0.00 ₽"}},{"$f":"SUBTOTAL(109,Личные_расходы[Ноябрь])","v":{"v":0,"d":"0.00 ₽"}},{"$f":"SUBTOTAL(109,Личные_расходы[Декабрь])","v":{"v":0,"d":"0.00 ₽"}},{"$f":"SUBTOTAL(109,Личные_расходы[Год])","v":{"v":139,"d":"139.00 ₽"}}]
[]
["Введите сведения в таблице «Финансовые обязательства», начиная с ячейки C89. Дальнейшие инструкции указаны в ячейке A97.",null,"ФИНАНСОВЫЕ ОБЯЗАТЕЛЬСТВА","Январь","Февраль","Март","Апрель","Май","Июнь","Июль","Август","Сентябрь","Октябрь","Ноябрь","Декабрь","Год","Спарклайн"]
[null,null,"Долгосрочные сбережения",{"v":25,"d":"25.00 ₽"},{"v":25,"d":"25.00 ₽"},{"v":25,"d":"25.00 ₽"},{"$nulls":9},{"$f":"SUM(Финансовые_обязательства[[#This Row],[Январь]:[Декабрь]])","v":{"v":75,"d":"75.00 ₽"}}]
[null,null,"Пенсионный фонд",{"v":45,"d":"45.00 ₽"},{"v":45,"d":"45.00 ₽"},{"v":45,"d":"45.00 ₽"},{"$nulls":9},{"$f":"SUM(Финансовые_обязательства[[#This Row],[Январь]:[Декабрь]])","v":{"v":135,"d":"135.00 ₽"}}]
[null,null,"Платежи по кредитной карте",{"v":75,"d":"75.00 ₽"},{"v":75,"d":"75.00 ₽"},{"v":75,"d":"75.00 ₽"},{"$nulls":9},{"$f":"SUM(Финансовые_обязательства[[#This Row],[Январь]:[Декабрь]])","v":{"v":225,"d":"225.00 ₽"}}]
[null,null,"Налог на прибыль (дополнительный)",{"$nulls":12},{"$f":"SUM(Финансовые_обязательства[[#This Row],[Январь]:[Декабрь]])","v":{"v":0,"d":"0.00 ₽"}}]
[null,null,"Другие обязательства",{"v":32,"d":"32.00 ₽"},{"v":34,"d":"34.00 ₽"},{"v":1,"d":"1.00 ₽"},{"$nulls":9},{"$f":"SUM(Финансовые_обязательства[[#This Row],[Январь]:[Декабрь]])","v":{"v":67,"d":"67.00 ₽"}}]
[null,null,"Итог",{"$f":"SUBTOTAL(109,Финансовые_обязательства[Январь])","v":{"v":177,"d":"177.00 ₽"}},{"$f":"SUBTOTAL(109,Финансовые_обязательства[Февраль])","v":{"v":179,"d":"179.00 ₽"}},{"$f":"SUBTOTAL(109,Финансовые_обязательства[Март])","v":{"v":146,"d":"146.00 ₽"}},{"$f":"SUBTOTAL(109,Финансовые_обязательства[Апрель])","v":{"v":0,"d":"0.00 ₽"}},{"$f":"SUBTOTAL(109,Финансовые_обязательства[Май])","v":{"v":0,"d":"0.00 ₽"}},{"$f":"SUBTOTAL(109,Финансовые_обязательства[Июнь])","v":{"v":0,"d":"0.00 ₽"}},{"$f":"SUBTOTAL(109,Финансовые_обязательства[Июль])","v":{"v":0,"d":"0.00 ₽"}},{"$f":"SUBTOTAL(109,Финансовые_обязательства[Август])","v":{"v":0,"d":"0.00 ₽"}},{"$f":"SUBTOTAL(109,Финансовые_обязательства[Сентябрь])","v":{"v":0,"d":"0.00 ₽"}},{"$f":"SUBTOTAL(109,Финансовые_обязательства[Октябрь])","v":{"v":0,"d":"0.00 ₽"}},{"$f":"SUBTOTAL(109,Финансовые_обязательства[Ноябрь])","v":{"v":0,"d":"0.00 ₽"}},{"$f":"SUBTOTAL(109,Финансовые_обязательства[Декабрь])","v":{"v":0,"d":"0.00 ₽"}},{"$f":"SUBTOTAL(109,Финансовые_обязательства[Год])","v":{"v":502,"d":"502.00 ₽"}}]
[]
["Введите сведения в таблице «Разные расходы», начиная с ячейки C97. Дальнейшие инструкции указаны в ячейке A105.",null,"РАЗНЫЕ ПЛАТЕЖИ","Январь","Февраль","Март","Апрель","Май","Июнь","Июль","Август","Сентябрь","Октябрь","Ноябрь","Декабрь","Год","Спарклайн"]
[null,null,"Другое",{"$nulls":12},{"$f":"SUM(Прочее[[#This Row],[Январь]:[Декабрь]])","v":{"v":0,"d":"0.00 ₽"}}]
[null,null,"Другое",{"$nulls":12},{"$f":"SUM(Прочее[[#This Row],[Январь]:[Декабрь]])","v":{"v":0,"d":"0.00 ₽"}}]
[null,null,"Другое",{"$nulls":12},{"$f":"SUM(Прочее[[#This Row],[Январь]:[Декабрь]])","v":{"v":0,"d":"0.00 ₽"}}]
[null,null,"Другое",{"$nulls":12},{"$f":"SUM(Прочее[[#This Row],[Январь]:[Декабрь]])","v":{"v":0,"d":"0.00 ₽"}}]
[null,null,"Другое",{"$nulls":12},{"$f":"SUM(Прочее[[#This Row],[Январь]:[Декабрь]])","v":{"v":0,"d":"0.00 ₽"}}]
[null,null,"Итог",{"$f":"SUBTOTAL(109,Прочее[Январь])","v":{"v":0,"d":"0.00 ₽"}},{"$f":"SUBTOTAL(109,Прочее[Февраль])","v":{"v":0,"d":"0.00 ₽"}},{"$f":"SUBTOTAL(109,Прочее[Март])","v":{"v":0,"d":"0.00 ₽"}},{"$f":"SUBTOTAL(109,Прочее[Апрель])","v":{"v":0,"d":"0.00 ₽"}},{"$f":"SUBTOTAL(109,Прочее[Май])","v":{"v":0,"d":"0.00 ₽"}},{"$f":"SUBTOTAL(109,Прочее[Июнь])","v":{"v":0,"d":"0.00 ₽"}},{"$f":"SUBTOTAL(109,Прочее[Июль])","v":{"v":0,"d":"0.00 ₽"}},{"$f":"SUBTOTAL(109,Прочее[Август])","v":{"v":0,"d":"0.00 ₽"}},{"$f":"SUBTOTAL(109,Прочее[Сентябрь])","v":{"v":0,"d":"0.00 ₽"}},{"$f":"SUBTOTAL(109,Прочее[Октябрь])","v":{"v":0,"d":"0.00 ₽"}},{"$f":"SUBTOTAL(109,Прочее[Ноябрь])","v":{"v":0,"d":"0.00 ₽"}},{"$f":"SUBTOTAL(109,Прочее[Декабрь])","v":{"v":0,"d":"0.00 ₽"}},{"$f":"SUBTOTAL(109,Прочее[Год])","v":{"v":0,"d":"0.00 ₽"}}]
[]
["Итоговые значения автоматически рассчитываются в таблице, начиная с ячейки С105. Общие расходы, а также дефицит и избыток денежных средств автоматически вычисляются для каждого месяца и всего года. Спарклайны также обновляются автоматически.",null,"ИТОГОВЫЕ","ЯНВ","ФЕВ","МАР","АПР","МАЙ","ИЮН","ИЮЛ","АВГ","СЕН","ОКТ","НОЯ","ДЕК","ГОД","СПАРКЛАЙН"]
[null,null,"Общие расходы",{"$f":"SUM(Прочее[[#Totals],[Январь]],Финансовые_обязательства[[#Totals],[Январь]],Личные_расходы[[#Totals],[Январь]],Платежи_и_подписки[[#Totals],[Январь]],Отдых[[#Totals],[Январь]],Отпуск[[#Totals],[Январь]],Здоровье[[#Totals],[Январь]],Развлечения[[#Totals],[Январь]],Транспорт[[#Totals],[Январь]],Ежедневные[[#Totals],[Январь]],Домашние_расходы[[#Totals],[Январь]])","v":{"v":2687,"d":"2,687.00 ₽"}},{"$f":"SUM(Прочее[[#Totals],[Февраль]],Финансовые_обязательства[[#Totals],[Февраль]],Личные_расходы[[#Totals],[Февраль]],Платежи_и_подписки[[#Totals],[Февраль]],Отдых[[#Totals],[Февраль]],Отпуск[[#Totals],[Февраль]],Здоровье[[#Totals],[Февраль]],Развлечения[[#Totals],[Февраль]],Транспорт[[#Totals],[Февраль]],Ежедневные[[#Totals],[Февраль]],Домашние_расходы[[#Totals],[Февраль]])","v":{"v":3429,"d":"3,429.00 ₽"}},{"$f":"SUM(Прочее[[#Totals],[Март]],Финансовые_обязательства[[#Totals],[Март]],Личные_расходы[[#Totals],[Март]],Платежи_и_подписки[[#Totals],[Март]],Отдых[[#Totals],[Март]],Отпуск[[#Totals],[Март]],Здоровье[[#Totals],[Март]],Развлечения[[#Totals],[Март]],Транспорт[[#Totals],[Март]],Ежедневные[[#Totals],[Март]],Домашние_расходы[[#Totals],[Март]])","v":{"v":2718,"d":"2,718.00 ₽"}},{"$f":"SUM(Прочее[[#Totals],[Апрель]],Финансовые_обязательства[[#Totals],[Апрель]],Личные_расходы[[#Totals],[Апрель]],Платежи_и_подписки[[#Totals],[Апрель]],Отдых[[#Totals],[Апрель]],Отпуск[[#Totals],[Апрель]],Здоровье[[#Totals],[Апрель]],Развлечения[[#Totals],[Апрель]],Транспорт[[#Totals],[Апрель]],Ежедневные[[#Totals],[Апрель]],Домашние_расходы[[#Totals],[Апрель]])","v":{"v":0,"d":"0.00 ₽"}},{"$f":"SUM(Прочее[[#Totals],[Май]],Финансовые_обязательства[[#Totals],[Май]],Личные_расходы[[#Totals],[Май]],Платежи_и_подписки[[#Totals],[Май]],Отдых[[#Totals],[Май]],Отпуск[[#Totals],[Май]],Здоровье[[#Totals],[Май]],Развлечения[[#Totals],[Май]],Транспорт[[#Totals],[Май]],Ежедневные[[#Totals],[Май]],Домашние_расходы[[#Totals],[Май]])","v":{"v":0,"d":"0.00 ₽"}},{"$f":"SUM(Прочее[[#Totals],[Июнь]],Финансовые_обязательства[[#Totals],[Июнь]],Личные_расходы[[#Totals],[Июнь]],Платежи_и_подписки[[#Totals],[Июнь]],Отдых[[#Totals],[Июнь]],Отпуск[[#Totals],[Июнь]],Здоровье[[#Totals],[Июнь]],Развлечения[[#Totals],[Июнь]],Транспорт[[#Totals],[Июнь]],Ежедневные[[#Totals],[Июнь]],Домашние_расходы[[#Totals],[Июнь]])","v":{"v":0,"d":"0.00 ₽"}},{"$f":"SUM(Прочее[[#Totals],[Июль]],Финансовые_обязательства[[#Totals],[Июль]],Личные_расходы[[#Totals],[Июль]],Платежи_и_подписки[[#Totals],[Июль]],Отдых[[#Totals],[Июль]],Отпуск[[#Totals],[Июль]],Здоровье[[#Totals],[Июль]],Развлечения[[#Totals],[Июль]],Транспорт[[#Totals],[Июль]],Ежедневные[[#Totals],[Июль]],Домашние_расходы[[#Totals],[Июль]])","v":{"v":0,"d":"0.00 ₽"}},{"$f":"SUM(Прочее[[#Totals],[Август]],Финансовые_обязательства[[#Totals],[Август]],Личные_расходы[[#Totals],[Август]],Платежи_и_подписки[[#Totals],[Август]],Отдых[[#Totals],[Август]],Отпуск[[#Totals],[Август]],Здоровье[[#Totals],[Август]],Развлечения[[#Totals],[Август]],Транспорт[[#Totals],[Август]],Ежедневные[[#Totals],[Август]],Домашние_расходы[[#Totals],[Август]])","v":{"v":0,"d":"0.00 ₽"}},{"$f":"SUM(Прочее[[#Totals],[Сентябрь]],Финансовые_обязательства[[#Totals],[Сентябрь]],Личные_расходы[[#Totals],[Сентябрь]],Платежи_и_подписки[[#Totals],[Сентябрь]],Отдых[[#Totals],[Сентябрь]],Отпуск[[#Totals],[Сентябрь]],Здоровье[[#Totals],[Сентябрь]],Развлечения[[#Totals],[Сентябрь]],Транспорт[[#Totals],[Сентябрь]],Ежедневные[[#Totals],[Сентябрь]],Домашние_расходы[[#Totals],[Сентябрь]])","v":{"v":0,"d":"0.00 ₽"}},{"$f":"SUM(Прочее[[#Totals],[Октябрь]],Финансовые_обязательства[[#Totals],[Октябрь]],Личные_расходы[[#Totals],[Октябрь]],Платежи_и_подписки[[#Totals],[Октябрь]],Отдых[[#Totals],[Октябрь]],Отпуск[[#Totals],[Октябрь]],Здоровье[[#Totals],[Октябрь]],Развлечения[[#Totals],[Октябрь]],Транспорт[[#Totals],[Октябрь]],Ежедневные[[#Totals],[Октябрь]],Домашние_расходы[[#Totals],[Октябрь]])","v":{"v":0,"d":"0.00 ₽"}},{"$f":"SUM(Прочее[[#Totals],[Ноябрь]],Финансовые_обязательства[[#Totals],[Ноябрь]],Личные_расходы[[#Totals],[Ноябрь]],Платежи_и_подписки[[#Totals],[Ноябрь]],Отдых[[#Totals],[Ноябрь]],Отпуск[[#Totals],[Ноябрь]],Здоровье[[#Totals],[Ноябрь]],Развлечения[[#Totals],[Ноябрь]],Транспорт[[#Totals],[Ноябрь]],Ежедневные[[#Totals],[Ноябрь]],Домашние_расходы[[#Totals],[Ноябрь]])","v":{"v":0,"d":"0.00 ₽"}},{"$f":"SUM(Прочее[[#Totals],[Декабрь]],Финансовые_обязательства[[#Totals],[Декабрь]],Личные_расходы[[#Totals],[Декабрь]],Платежи_и_подписки[[#Totals],[Декабрь]],Отдых[[#Totals],[Декабрь]],Отпуск[[#Totals],[Декабрь]],Здоровье[[#Totals],[Декабрь]],Развлечения[[#Totals],[Декабрь]],Транспорт[[#Totals],[Декабрь]],Ежедневные[[#Totals],[Декабрь]],Домашние_расходы[[#Totals],[Декабрь]])","v":{"v":0,"d":"0.00 ₽"}},{"$f":"SUM(Прочее[[#Totals],[Год]],Финансовые_обязательства[[#Totals],[Год]],Личные_расходы[[#Totals],[Год]],Платежи_и_подписки[[#Totals],[Год]],Отдых[[#Totals],[Год]],Отпуск[[#Totals],[Год]],Здоровье[[#Totals],[Год]],Развлечения[[#Totals],[Год]],Транспорт[[#Totals],[Год]],Ежедневные[[#Totals],[Год]],Домашние_расходы[[#Totals],[Год]])","v":{"v":8834,"d":"8,834.00 ₽"}}]
[null,null,"Нехватка/остаток наличных",{"$f":"Доходы[[#Totals],[Январь]]-D106","v":{"v":1036,"d":"1,036.00 ₽"}},{"$f":"Доходы[[#Totals],[Февраль]]-E106","v":{"v":127,"d":"127.00 ₽"}},{"$f":"Доходы[[#Totals],[Март]]-F106","v":{"v":926,"d":"926.00 ₽"}},{"$f":"Доходы[[#Totals],[Апрель]]-G106","v":{"v":0,"d":"0.00 ₽"}},{"$f":"Доходы[[#Totals],[Май]]-H106","v":{"v":0,"d":"0.00 ₽"}},{"$f":"Доходы[[#Totals],[Июнь]]-I106","v":{"v":0,"d":"0.00 ₽"}},{"$f":"Доходы[[#Totals],[Июль]]-J106","v":{"v":0,"d":"0.00 ₽"}},{"$f":"Доходы[[#Totals],[Август]]-K106","v":{"v":0,"d":"0.00 ₽"}},{"$f":"Доходы[[#Totals],[Сентябрь]]-L106","v":{"v":0,"d":"0.00 ₽"}},{"$f":"Доходы[[#Totals],[Октябрь]]-M106","v":{"v":0,"d":"0.00 ₽"}},{"$f":"Доходы[[#Totals],[Ноябрь]]-N106","v":{"v":0,"d":"0.00 ₽"}},{"$f":"Доходы[[#Totals],[Декабрь]]-O106","v":{"v":0,"d":"0.00 ₽"}},{"$f":"Доходы[[#Totals],[Год]]-P106","v":{"v":2089,"d":"2,089.00 ₽"}}]